Workbook

Sheet 01|Ficha Operaciones
B2: FICHA DE OPERACIONES DEL PRODUCTO Y/O PROCESO ESTUDIO DE TIEMPOS
B4: Proceso a Estudiar: | D4: PINTURA ELECTROESTÁTICA DIFUSOR
B5: Analista d tiempos: | D5: Ing. Yornandy Martínez | E5: Operarios: | G5: • Juan David García
B6: Fecha del estudio: | D6: 2018-08-07 | G6: • Andrés Arango
B7: PRODUCTO TERMINADO | F7: DESCRIPCIÓN DEL PRODUCTO / PROCESO
F8: Difusor de techo con elemento central fijo, removible y aleta curva, aplicación sistemas de aire acondicionado, ventilación y calefacción.
F12: MATERIALES UTILIZADOS EN EL PROCESO
F13: • Aluminio extruido | I13: • Pintura Epoxipoliéster
F14: • Cerradores aluminio
F15: • Gancho esquina
F16: • Panel central
F17: • Varilla acero 1/4"
B19: SECUENCIA DE OPERACIONES
B48: DESCRIPCIÓN DE LAS OPERACIONES | F48: SEGURIDAD INDUSTRIAL
B49: 1 | C49: Seleccionar productos a ser pintados
B50: 2 | C50: Colgar productos en soporte para ser lavados
B51: 3 | C51: Sumergir productos en tanque de Foxfes
B52: 4 | C52: Ubicar productos en carro de secado
B53: 5 | C53: Secar productos en horno a 120° / 10 minutos
B54: 6 | C54: Organizar productos para ser pintados
B55: 7 | C55: Pintar producto parte frontal pintura electroestática
B56: 8 | C56: Pintar producto parte posterior pintura electroestática
B57: 9 | C57: Ubicar producto pintado en carro de horneado
B58: 10 | C58: Ingresar carro al horno 180° - 15 minutos
B59: 11 | C59: Sacar carro del horno
B60: 12 | C60: Enfriar producto terminado
B62: PRINCIPALES MAQUINAS - EQUIPOS - HERRAMIENTAS UTILIZADAS EN EL PROCESO
B75: DIAGRAMA DE RECORRIDOS EN PUESTOS DE TRABAJO
B88: CURSOGRAMA ANALÍTICO DEL PROCESO
B90: Hoja N°___1___ De:__1__ Diagrama N°:__1__ | F90: Operar. | G90: X | H90: Mater. | J90: Maqui.
B92: Proceso: Pintura Electroestática | E92: RESUMEN
B93: Fecha: Mayo 12 de 2017 | E93: SÍMBOLO | G93: ACTIVIDAD | J93: Act. | K93: Pro. | L93: Econ.
B94: El estudio Inicia: Ingreso de productos sección de pintura | G94: Operación | J94: =COUNTA($H$104:$H$125) -> 9
B95: Método: Actual | G95: Transporte | J95: =COUNTA($I$104:$I$125) -> 5
B96: Producto: L-JS F 4 STYLE 9 12"X12" | G96: Inspección | J96: =COUNTA($J$104:$J$125) -> 1
B97: Nombre del operario: Andrés Arango | G97: Espera | J97: =COUNTA($K$104:$K$125) -> 1
B98: Elaborado por: Yornandy Martínez | G98: Almacenaje | J98: =COUNTA($L$104:$L$125) -> 1
B99: Tamaño del Lote: | D99: 1 | E99: Total de actividades realizadas | J99: =SUM(J94:J98) -> 17
E100: Distancia total en metros | J100: =F126 -> 15.6
E101: Tiempo min/hombre | J101: =D126 -> 43.63333333
B102: NUMERO | C102: DESCRIPCIÓN DEL PROCESO | E102: Cantidad | F102: Distancia metros | G102: Tiempo Segundos | H102: SÍMBOLOS PROCESOS
B104: 1 | C104: Colocar gancho metálico al producto | E104: 1 | G104: 5.3 | H104: •
B105: 2 | C105: Transportar producto al tanque 1 de lavado | E105: 1 | F105: 1.5 | G105: 5.1 | I105: •
B106: 3 | C106: Colgar producto en soporte metálico | E106: 1 | G106: 2 | H106: •
B107: 4 | C107: Dejar escurrir | E107: 1 | G107: 2.5 | H107: •
B108: 5 | C108: Colocar producto en carro de secado | E108: 1 | G108: 4.3 | H108: •
B109: 6 | C109: Transportar carro con productos al horno | E109: 1 | F109: 4.8 | G109: 38.2 | I109: •
B110: 7 | C110: Secar productos a 180°C | E110: 1 | G110: 1080 | H110: •
B111: 8 | C111: Sacar carro del horno | E111: 1 | G111: 30.2 | H111: •
B112: 9 | C112: Transportar carro con productos a zona de enfriamiento | E112: 1 | F112: 2.3 | G112: 25.8 | I112: •
B113: 10 | C113: Colocar producto en carro de curado | E113: 1 | G113: 15.7 | H113: •
B114: 11 | C114: Transportar carro con productos al horno | E114: 1 | F114: 1.8 | G114: 48.2 | I114: •
B115: 12 | C115: Hornear productos a 220°C | E115: 1 | G115: 1080 | H115: •
B116: 13 | C116: Transportar carro con productos a zona de enfriamiento | E116: 1 | F116: 5.2 | G116: 25.3 | I116: •
B117: 14 | C117: Esperar inspector de calidad | E117: 1 | G117: 240 | K117: •
B118: 15 | C118: Despegar producto del carro | E118: 1 | G118: 1.8 | H118: •
B119: 16 | C119: Inspeccionar producto | E119: 1 | G119: 5.9 | J119: •
B120: 17 | C120: Almacenar producto pintado | E120: 1 | G120: 7.7 | L120: •
C126: Tiempo Minutos: | D126: =G126/60 -> 43.63333333 | E126: m | F126: =SUM(F104:F125) -> 15.6 | G126: =SUM(G104:G125) -> 2618 | H126: s
B128: Observaciones:
B129: El proceso se encuentra estandarizado

Sheet 02|Elementos
B2: FICHA DESCRIPTIVA DE ELEMENTOS Y PUNTOS DE CORTE
B3: Nombre del proceso: Ensamble Dámper OB 8"x8" Palanca
B4: Analistas de tiempos: Yornandy Martinez
B5: Operarios: Santiago Restrepo
B7: Elem. | C7: Descripción del elemento | D7: Puntos de corte / finalización | F7: Imagen finaliza el elemento
B8: 1 | C8: Ensamblar marco Dámper OB | D8: Posiciona soporte para ensamble complementos y piñones
B9: 2 | C9: Ensamblar complemento y piñon en la aleta | D9: Posiciona marco dámper para ensamble de aletas
B10: 3 | C10: Ensamblar aleta en marco dámper OB | D10: Sujeta remachador de marco
B11: 4 | C11: Cerrar marco dámper OB | D11: Libera remachador de marco
B12: 5 | C12: Ajustar manualmente el panel de aletas | D12: Sujeta palanca de accionamiento
B13: 6 | C13: Ensamblar palanca de accionamiento | D13: Libera martillo de ajuste
B14: 7 | C14: Pruebas de accionamiento mecánico | D14: Almacena dámper

Sheet 03|Ciclos
B2: SIMULADOR PARA CALCULO MUESTREO ALEATORIO SIMPLE (SIN CICLOS)
B12: Tabla Z | E12: DATOS PARA EL CALCULO
B13: Confianza | C13: Valor Z | E13: Nivel de confianza solicitado | H13: 0.95
B14: 0.99 | C14: 2.58 | E14: Nivel de error permitido | H14: 0.05
B15: 0.98 | C15: 2.38 | E15: p: probabilidad de que ocurra | H15: 0.5 | I15: =SUM(H15:H16) -> 1
B16: 0.97 | C16: 2.25 | E16: q: probabilidad de que no ocurra | H16: 0.5
B17: 0.96 | C17: 2.12
B18: 0.95 | C18: 1.96 | E18: Definición variables | H18: n = | I18: =F20^2 -> 3.8416 | J18: =F21 -> 0.5 | K18: =F22 -> 0.5
B19: 0.94 | C19: 1.88 | E19: n | F19: ? | I19: =F23^2 -> 0.0025
B20: 0.93 | C20: 1.81 | E20: Z | F20: =INDEX(B14:C24,MATCH(H13,B14:B24,0),2) -> 1.96
B21: 0.92 | C21: 1.75 | E21: p | F21: =H15/1 -> 0.5 | H21: n = | I21: =I18*J18*K18 -> 0.9604
B22: 0.91 | C22: 1.69 | E22: q | F22: =H16/1 -> 0.5 | I22: =I19 -> 0.0025
B23: 0.9 | C23: 1.65 | E23: E | F23: =H14/1 -> 0.05
B24: 0.8 | C24: 1.28 | H24: n = | I24: =I21/I22 -> 384.16 | J24: Ciclos o muestreos
B27: Sino hay información previa p y q valdrán el 50% cada uno.
B28: se descome la población
B31: SIMULADOR PARA CALCULO MUESTREO ALEATORIO SIMPLE (CON CICLOS)
G33: n | H33: Tamaño de la muestra
G34: Z | H34: Nivel de confianza
G35: p | H35: Variabilidad positiva
G36: q | H36: Variabilidad negativa
G37: E | H37: Nivel de error permitido
G38: N | H38: Tamaño población (mediciones)
G39: σ | H39: Sigma
B41: Tabla Z | E41: DATOS PARA EL CALCULO
B42: Confianza | C42: Valor Z | E42: Nivel de confianza solicitado | H42: 0.95
B43: 0.99 | C43: 2.58 | E43: Nivel de error permitido | H43: 0.05
B44: 0.98 | C44: 2.38 | E44: Tamaño de la Población | H44: =COUNT(C58:C107) -> 50
B45: 0.97 | C45: 2.25 | E45: p: probabilidad de que ocurra | H45: 0.5 | I45: =SUM(H45:H46) -> 1
B46: 0.96 | C46: 2.12 | E46: q: probabilidad de que no ocurra | H46: 0.5
B47: 0.95 | C47: 1.96
B48: 0.94 | C48: 1.88 | E48: Definición variables | H48: n = | I48: =F54 -> 50 | J48: =F50^2 -> 3.8416 | K48: =F51*F52 -> 0.25
B49: 0.93 | C49: 1.81 | E49: n | F49: ? | I49: =(F54-1)*F53^2+F50^2*F51*F52 -> 1.0829
B50: 0.92 | C50: 1.75 | E50: Z | F50: =INDEX(B43:C53,MATCH(H42,B43:B53,0),2) -> 1.96
B51: 0.91 | C51: 1.69 | E51: p | F51: =H45/1 -> 0.5 | H51: n = | I51: =I48*J48*K48 -> 48.02
B52: 0.9 | C52: 1.65 | E52: q | F52: =H46/1 -> 0.5 | I52: =I49 -> 1.0829
B53: 0.8 | C53: 1.28 | E53: E | F53: =H43/1 -> 0.05
E54: N | F54: =H44 -> 50 | H54: n = | I54: =I51/I52 -> 44.3438914 | J54: Ciclos o muestreos
B56: Tiempo Normalizado
B57: Ciclos | C57: TN / Seg
B58: 1 | C58: 3.93
B59: 2 | C59: 4.095
B60: 3 | C60: 3.85
B61: 4 | C61: 4.944
B62: 5 | C62: 3.696
B63: 6 | C63: 3.45
B64: 7 | C64: 2.596
B65: 8 | C65: 2.475
B66: 9 | C66: 4.4296
B67: 10 | C67: 2.805
B68: 11 | C68: 4.712
B69: 12 | C69: 4.656
B70: 13 | C70: 4.142
B71: 14 | C71: 5.4
B72: 15 | C72: 3.78
B73: 16 | C73: 3.432
B74: 17 | C74: 3.9805
B75: 18 | C75: 3.762
B76: 19 | C76: 3.52
B77: 20 | C77: 5.96
B78: 21 | C78: 2.376
B79: 22 | C79: 3.12
B80: 23 | C80: 2.475
B81: 24 | C81: 4.4296
B82: 25 | C82: 2.805
B83: 26 | C83: 4.712
B84: 27 | C84: 3.78
B85: 28 | C85: 3.432
B86: 29 | C86: 3.9805
B87: 30 | C87: 3.85
B88: 31 | C88: 4.944
B89: 32 | C89: 3.696
B90: 33 | C90: 4.4296
B91: 34 | C91: 2.805
B92: 35 | C92: 4.712
B93: 36 | C93: 5.96
B94: 37 | C94: 2.376
B95: 38 | C95: 3.12
B96: 39 | C96: 2.475
B97: 40 | C97: 4.4296
B98: 41 | C98: 2.805
B99: 42 | C99: 2.475
B100: 43 | C100: 4.4296
B101: 44 | C101: 2.805
B102: 45 | C102: 4.712
B103: 46 | C103: 4.656
B104: 47 | C104: 4.142
B105: 48 | C105: 4.944
B106: 49 | C106: 3.696
B107: 50 | C107: 4.4296

Sheet 04|Fecuencia
B2: OBSERVACIONES ALEATORIAS | K2: ESCALA DE TIEMPO TURNO
R3: Hora Desc.
B4: Hora | F4: 06:00:00 | G4: 06:30:00 | H4: 07:00:00 | I4: 07:30:00 | J4: 08:00:00 | K4: 08:30:00 | L4: 09:00:00 | M4: 09:30:00 | N4: 10:00:00 | O4: 10:30:00 | P4: 11:00:00 | Q4: 11:30:00 | R4: 12:00:00 | S4: 12:30:00 | T4: 01:00:00 | U4: 01:30:00 | V4: 02:00:00 | W4: 02:30:00
B5: Observacion | F5: 1 | G5: =F5+1 -> 2 | H5: =G5+1 -> 3 | I5: 4 | J5: 5 | K5: 6 | L5: 7 | M5: 8 | N5: 9 | O5: 10 | P5: 11 | Q5: 12 | T5: 13 | U5: 14 | V5: 15 | W5: =V5+1 -> 16
B7: Hora | C7: Obs | D7: Hor | E7: Min | F7: Hora de la Obser. | L7: Hora de la Obser. | Q7: CALCULO DE DIAS PARA OBSERVACIONES
B8: 6 | C8: 1 | D8: =RANDBETWEEN(1,16) -> 14 | E8: =RANDBETWEEN(1,9)/10 -> 0.9 | F8: =INDEX(B$8:D$23,MATCH(D8,C$8:C$23,0),1) -> 13 | G8: : | H8: =(E8*60) -> 54
B9: 6 | C9: 2 | D9: =RANDBETWEEN(1,16) -> 11 | E9: =RANDBETWEEN(1,9)/10 -> 0.9 | F9: =INDEX(B$8:D$23,MATCH(D9,C$8:C$23,0),1) -> 11 | G9: : | H9: 54 | Q9: MUESTREO: | U9: 84
B10: 7 | C10: 3 | D10: 4 | E10: 0.6 | F10: 7 | G10: : | H10: 36 | Q10: OBSERVACIONES: | U10: =COUNT(C8:C23) -> 16
B11: 7 | C11: 4 | D11: 7 | E11: 0.9 | F11: 9 | G11: : | H11: 54 | J11: 7 | Q11: DIAS: | U11: =ROUNDUP(U9/U10,) -> 6
B12: 8 | C12: 5 | D12: 4 | E12: 0.8 | F12: 7 | G12: : | H12: 48 | J12: 8
B13: 8 | C13: 6 | D13: 8 | E13: 0.2 | F13: 9 | G13: : | H13: 12 | J13: 8
B14: 9 | C14: 7 | D14: 5 | E14: 0.8 | F14: 8 | G14: : | H14: 48 | J14: 9 | Q14: ITERACIONES | U14: 5000 | W14: =100%-W15 -> 0.9566
B15: 9 | C15: 8 | D15: 1 | E15: 0.7 | F15: 6 | G15: : | H15: 42 | J15: 9 | Q15: SIMULACION | U15: 217 | W15: =U15/U14 -> 0.0434
B16: 10 | C16: 9 | D16: 6 | E16: 0.7 | F16: 8 | G16: : | H16: 42 | J16: 10
B17: 10 | C17: 10 | D17: 5 | E17: 0.7 | F17: 8 | G17: : | H17: 42 | J17: 10 | Q17: =W15*100 -> 4.34 | R17: =Q17-(100/7) -> -9.945714286 | S17: =R17-(100/7) -> -24.23142857 | T17: -38.51714286 | U17: -52.80285714 | V17: -67.08857143 | W17: -81.37428571
B18: 11 | C18: 11 | D18: 5 | E18: 0.2 | F18: 8 | G18: : | H18: 12 | J18: 11
B19: 11 | C19: 12 | D19: 8 | E19: 0.1 | F19: 9 | G19: : | H19: 6 | J19: 11
B20: 13 | C20: 13 | D20: 16 | E20: 0.8 | F20: 14 | G20: : | H20: 48 | J20: 1
B21: 13 | C21: 14 | D21: 14 | E21: 0.8 | F21: 13 | G21: : | H21: 48 | J21: 1
B22: 14 | C22: 15 | D22: 14 | E22: 0.3 | F22: 13 | G22: : | H22: 18 | J22: 2
B23: 14 | C23: 16 | D23: 5 | E23: 0.1 | F23: 8 | G23: : | H23: 6 | J23: 2

Sheet 05|06|07|08|09|USP
B2: Modelo para el calculo de la USP (Unidad Estándar de Producción)
B4: Elemento1. Corte | C4: Tiempo Cronometro seg. | D4: Valoración ritmo de trabajo | E4: Tiempo Normaliz. Seg | F4: % de Suplement. | G4: Tiempo estándar seg | H4: Tiempo Complem. Seg | I4: USP Total seg | J4: USP Total min
B5: Ciclo 1 | C5: 35.8 | D5: 0.9 | E5: =IFERROR((C5*D5),0) -> 32.22 | F5: =$D$41 -> 0.19 | G5: =E5*(1+F5) -> 38.3418 | H5: 0 | I5: =(G5+H5) -> 38.3418 | J5: =IFERROR(I5/60,0) -> 0.63903
B6: Ciclo 2 | C6: 32.3 | D6: 1.15 | E6: =IFERROR((C6*D6),0) -> 37.145 | F6: =$D$41 -> 0.19 | G6: =E6*(1+F6) -> 44.20255 | H6: 0 | I6: =(G6+H6) -> 44.20255 | J6: =IFERROR(I6/60,0) -> 0.7367091667
B7: Ciclo 3 | C7: 34.5 | D7: 1 | E7: =IFERROR((C7*D7),0) -> 34.5 | F7: =$D$41 -> 0.19 | G7: =E7*(1+F7) -> 41.055 | H7: 0 | I7: =(G7+H7) -> 41.055 | J7: 0.68425
C10: =IFERROR(AVERAGE(C5:C9),0) -> 34.2 | E10: =IFERROR(AVERAGE(E5:E9),0) -> 34.62166667 | G10: =IFERROR(AVERAGE(G5:G9),0) -> 41.19978333 | I10: =IFERROR(AVERAGE(I5:I9),0) -> 41.19978333 | J10: =IFERROR(AVERAGE(J5:J9),0) -> 0.6866630556
B12: Elemento2. Pulido | C12: Tiempo Cronometro seg. | D12: Valoración ritmo de trabajo | E12: Tiempo Normaliz. Seg | F12: % de Suplement. | G12: Tiempo estándar seg | H12: Tiempo Complem. Seg | I12: USP Total seg | J12: USP Total min
B13: Ciclo 1 | C13: 145 | D13: 0.98 | E13: =IFERROR((C13*D13),0) -> 142.1 | F13: =$D$41 -> 0.19 | G13: =E13*(1+F13) -> 169.099 | H13: 0 | I13: =(G13+H13) -> 169.099 | J13: =IFERROR(I13/60,0) -> 2.818316667
B14: Ciclo 2 | C14: 122 | D14: 1.15 | E14: =IFERROR((C14*D14),0) -> 140.3 | F14: =$D$41 -> 0.19 | G14: =E14*(1+F14) -> 166.957 | H14: 0 | I14: =(G14+H14) -> 166.957 | J14: =IFERROR(I14/60,0) -> 2.782616667
B15: Ciclo 3 | C15: 140 | D15: 1 | E15: =IFERROR((C15*D15),0) -> 140 | F15: =$D$41 -> 0.19 | G15: =E15*(1+F15) -> 166.6 | H15: 0 | I15: =(G15+H15) -> 166.6 | J15: 2.776666667
C18: =IFERROR(AVERAGE(C13:C17),0) -> 135.6666667 | E18: =IFERROR(AVERAGE(E13:E17),0) -> 140.8 | G18: =IFERROR(AVERAGE(G13:G17),0) -> 167.552 | I18: =IFERROR(AVERAGE(I13:I17),0) -> 167.552 | J18: =IFERROR(AVERAGE(J13:J17),0) -> 2.792533333
B20: Elemento3. Pintura | C20: Tiempo Cronometro seg. | D20: Valoración ritmo de trabajo | E20: Tiempo Normaliz. Seg | F20: % de Suplement. | G20: Tiempo estándar seg | H20: Tiempo Complem. Seg | I20: USP Total seg | J20: USP Total min
B21: Ciclo 1 | C21: 186 | D21: 1.05 | E21: =IFERROR((C21*D21),0) -> 195.3 | F21: =$D$41 -> 0.19 | G21: =E21*(1+F21) -> 232.407 | H21: =120/10 -> 12 | I21: =(G21+H21) -> 244.407 | J21: =I21/60 -> 4.07345
B22: Ciclo 2 | C22: 195 | D22: 1 | E22: =IFERROR((C22*D22),0) -> 195 | F22: =$D$41 -> 0.19 | G22: =E22*(1+F22) -> 232.05 | H22: =120/10 -> 12 | I22: =(G22+H22) -> 244.05 | J22: =I22/60 -> 4.0675
B23: Ciclo 3 | C23: 200 | D23: 0.95 | E23: =IFERROR((C23*D23),0) -> 190 | F23: =$D$41 -> 0.19 | G23: =E23*(1+F23) -> 226.1 | H23: 12 | I23: =(G23+H23) -> 238.1 | J23: =I23/60 -> 3.968333333
C26: =IFERROR(AVERAGE(C21:C25),0) -> 193.6666667 | E26: =IFERROR(AVERAGE(E21:E25),0) -> 193.4333333 | G26: =IFERROR(AVERAGE(G21:G25),0) -> 230.1856667 | I26: =IFERROR(AVERAGE(I21:I25),0) -> 242.1856667 | J26: =IFERROR(AVERAGE(J21:J25),0) -> 4.036427778
B28: Calculo de tiempos suplementarios | F28: Resumen USP Total Minutos | J28: USP TOTAL
B29: Por Fatiga Constantes | F29: Elemento | G29: Tiempo/min | H29: % Particip. | J29: =J10+J18+J26 -> 7.515624167
B30: Necesidad personal | C30: 0.07 | D30: =SUM(C30:C32) -> 0.11 | F30: 1 | G30: =J10 -> 0.6866630556 | H30: =G30/$J$29 -> 0.09136474102
B31: Fatiga | C31: 0.04 | F31: 2 | G31: =J18 -> 2.792533333 | H31: =G31/$J$29 -> 0.371563728
F32: 3 | G32: =J26 -> 4.036427778 | H32: 0.537071531
B33: Por Fatiga Variables | F33: 4
B34: Concentración | C34: 0.03 | D34: =SUM(C34:C36) -> 0.05 | F34: 5
B35: Estado de pie | C35: 0.02 | F35: 6
F36: 7
B37: Suplementos por Contingencia | F37: 8
B38: Falta de M.P | C38: 0.01 | D38: =SUM(C38:C40) -> 0.03 | F38: 9
B39: Paro mecanico | C39: 0.02 | F39: 10
F40: 11
B41: Suplementos Totales | D41: =D30+D34+D38 -> 0.19

Sheet 10|Eficiencia
B2: CALCULO DE EFICIENCIA OPERACIONAL
B4: TURNO DE TRABAJO HORAS: | C4: 06:00:00 | D4: 16:00:00 | E4: =(D4-C4)*24 -> 10
B5: TURNO DE TRABAJO MINUTOS: | E5: =E4*60 -> 600
B6: % DE EFICIENCIA: | E6: 0.96
B7: USP DEL PRODUCTO MINUTOS: | E7: 12.5
B8: UNIDADES TEORICAS O PROGRAMADAS: | E8: =E5*E6/E7 -> 46.08
B9: UNIDADES REALES PRODUCIDAS: | E9: 38
B10: EFICIENCIA OPERACIONAL | E10: =E9/E8 -> 0.8246527778
B12: CALCULO DE LA CAPACIDAD DE PLANTA
B14: DIAS HABILES DEL MES | E14: 24
B15: CANTIDAD OPERARIOS MOD | E15: 15
B16: NUMERO DE TURNOS | E16: 1
B17: HORAS POR TURNO | E17: 10
B18: FACTOR DE MINUTOS | E18: 60
B19: USP DEL PRODUCTO MINUTOS | E19: =E7 -> 12.5
B20: CAPACIDAD DE PLANTA EN MINUTOS | E20: =E14*E15*E16*E17*E18 -> 216000
B21: CAPACIDAD DE PLANTA EN UNIDADES | E21: =E20/E19 -> 17280

Sheet 11|Incentivos
B2: CALCULO PAGO DE INCENTIVOS
B4: TABLA DE DATOS INICIALES
B5: Turno de trabajo horas: | D5: 14:00:00 | E5: 22:00:00 | F5: =(E5-D5)*24 -> 8
B6: Turno en minutos: | F6: =F5*60 -> 480
B7: Salario mensual pagado: | F7: 877000
B8: Unidades reales producidas: | F8: 45
B9: USP del producto en minutos: | F9: ='10|Eficiencia'!E19 -> 12.5
B11: Minutos exigibles | E11: =F6 -> 480
B12: Minutos reales | E12: =F8*F9 -> 562.5
B13: Unidades Teóricas | E13: =(F6/F9) -> 38.4
B14: Diferencia de Unidades | E14: =F8-E13 -> 6.6
B16: 1 | C16: POR PAGO A MINUTOS
B17: Minutos a Incentivo | F17: =E12-F6 -> 82.5
B18: Valor del minuto | F18: =(F7/240)/60 -> 60.90277778
B19: Incentivo | F19: =F18*F17 -> 5024.479167
B20: Salario día | F20: =F18*F6 -> 29233.33333
B21: Salario día + Incentivo | F21: =IF(E14<0,F20,F19+F20) -> 34257.8125
B23: 2 | C23: EFICIENCIA DEL TRABAJADOR
B24: Producción real | F24: =F8 -> 45
B25: Producción teórica exigible | F25: =E13 -> 38.4
B26: % de eficiencia en unidades | F26: =F24/F25 -> 1.171875
B27: Eficiencia en minutos Incentivo | F27: =(F24*F9)/F6 -> 1.171875
B28: Salario día | F28: =F20 -> 29233.33333
B29: Salario día + Incentivo | F29: =IF(E14<0,F28,F28*F27) -> 34257.8125
B31: 3 | C31: POR UNIDAD
B32: Valor de cada unidad | F32: =F20/E13 -> 761.2847222
B33: Unidades a incentivos | F33: =F8-E13 -> 6.6
B34: Incentivos | F34: =F33*F32 -> 5024.479167
B35: Salario día | F35: =F20 -> 29233.33333
B36: Salario día + Incentivo | F36: =IF(E14<0,F35,F35+F34) -> 34257.8125
